[Event "87th Tata Steel Challengers 2025"]
[Site "Wijk aan Zee"]
[Date "2025.01.20"]
[Round "3.6"]
[White "Lu, Miaoyi"]
[Black "Svane, Frederik"]
[Result "1-0"]
[Annotator "TA"]
[ECO "C01"]
[WhiteElo "2429"]
[BlackElo "2664"]
[PlyCount "55"]
[EventDate "2025.01.13"]
[EventType "tourn"]
[EventCountry "NED"]
[SourceTitle "playchess.com"]
[Source "ChessBase"]
[SourceQuality "1"]
[TimeControl "40/6000+30:20/3000+30:900+30"]

{[%evp 14,55,26,16,16,6,14,9,21,21,26,28,40,14,14,20,22,0,0,3,8,8,0,0,0,0,27,32,398,407,466,505,506,488,491,483,561,561,560,543,570,557,622,607]} 1. e4 {[%emt 0:00:02]} e6 {[%emt 0:00:11]} 2. d4 {[%emt 0:00:06]} d5 {[%emt 0:00:07]} 3. exd5 {[%emt 0:00:19]} exd5 {[%emt 0:00:21]} 4. Nf3 {[%emt 0:00:04]} Nf6 {[%emt 0:01:55]} 5. Bd3 {[%emt 0:00:06]} Bd6 {[%emt 0:00:18]} 6. O-O {[%emt 0:00:04]} O-O {[%emt 0:00:09]} 7. Bg5 {[%emt 0:00:03]} Bg4 {[%emt 0:06:03]} 8. Nbd2 {[%emt 0:00:07][%cal Bb1d2,Bd2c4,Bc4e3,Be3f5,Bf5g3,Bg3e4][%mdl 32]} h6 {[%emt 0:16:46]} 9. Bh4 {[%emt 0:00:02]} Nbd7 {[%emt 0:01:01]} 10. c4 {[%emt 0:13:35]} dxc4 {[%emt 0:11:33]} 11. Nxc4 {[%emt 0:00:12]} Nb6 {[%emt 0:01:05]} 12. Ne3 {[%emt 0:32:02]} Be6 {[%emt 0:07:07]} 13. Bc2 {[%emt 0:08:16]} Re8 {[%emt 0:01:23]} 14. Qd3 {[%emt 0:05:47]} c6 {[%emt 0:07:24]} 15. Rfe1 {[%emt 0:09:20]} Nbd7 {[%emt 0:03:24]} 16. Nf5 {[%emt 0:03:41]} Bf8 {[%emt 0:09:46]} 17. Ne5 {[%emt 0:05:00]} Nxe5 {[%emt 0:01:03]} (17... g6 {keeps more tension.} 18. Qg3 Nxe5 19. dxe5 Nh5) 18. Rxe5 {[%emt 0:08:53]} g6 {[%emt 0:01:17]} 19. Ng3 {[%emt 0:09:31][%cal Og3h5]} Bg7 {[%emt 0:06:43] Strongly threatening ...g5.} (19... g5 $5 20. Nh5 Bd6 $11 (20... gxh4 21. Nxf6+ Kg7 22. Nh5+ Kh8 23. Qh7#)) 20. Ne4 $1 {[%emt 0:01:06] and Re1 should not be overlooked} Bf5 $2 {[%emt 0:13:24][%mdl 8192]} ({Better is} 20... g5 $14 21. Bg3 Nxe4 22. Rxe4 Qd7) 21. Bxf6 $18 {[%emt 0:01:47]} Bxe4 {[%emt 0:00:58]} 22. Bxd8 {[%emt 0:00:10][%cal Bf6d8,Bd8a5,Ba5c3][%mdl 32]} Rxe5 {[%emt 0:00:07]} 23. Qc3 {[%emt 0:05:18]} Re6 {[%emt 0:00:02]} 24. Ba5 {[%emt 0:00:21]} Bxc2 {[%emt 0:00:17]} 25. Qxc2 {[%emt 0:00:02]} Bxd4 {[%emt 0:00:06]} 26. Bc3 {[%emt 0:00:13]} Rae8 {[%emt 0:00:35]} 27. Kf1 {[%emt 0:00:16]} (27. Bxd4 $2 {leads to mate.} Re1+ 28. Rxe1 Rxe1#) 27... Bc5 {[%emt 0:02:43]} 28. Re1 {[%emt 0:01:41]} 1-0

[Event "87th Tata Steel Challengers 2025"]
[Site "Wijk aan Zee"]
[Date "2025.01.20"]
[Round "3.7"]
[White "Suleymanli, Aydin"]
[Black "Deshmukh, Divya"]
[Result "1-0"]
[Annotator "TA"]
[ECO "D02"]
[WhiteElo "2623"]
[BlackElo "2490"]
[PlyCount "61"]
[EventDate "2025.01.13"]
[EventType "tourn"]
[EventCountry "NED"]
[TimeControl "40/6000+30:20/3000+30:900+30"]

{[%evp 11,61,0,-1,0,0,-11,0,-8,-8,-6,-8,-4,8,-3,0,0,0,4,7,0,16,20,17,13,20,13,38,21,21,13,23,21,48,23,129,114,172,168,169,169,181,173,327,340,353,346,351,325,673,681,29983,29984]} 1. d4 {[%emt 0:00:03]} d5 {[%emt 0:00:25]} 2. Bf4 {[%emt 0:00:24]} Nf6 {[%emt 0:00:40]} 3. e3 {[%emt 0:00:14]} e6 {[%emt 0:01:53]} 4. Nf3 {[%emt 0:00:31]} Bd6 {[%emt 0:03:48]} 5. Ne5 {[%emt 0:01:32]} O-O {[%emt 0:00:44]} 6. Nd2 {[%emt 0:00:34]} c5 {[%emt 0:00:34]} 7. c3 {[%emt 0:00:06] D02: 1 d4 d5 2 Nf3 sidelines, including 2...Nf6 3 g3 and 2...Nf6 3 Bf4.} Qc7 {[%emt 0:03:45]} 8. Bd3 {[%emt 0:00:15]} b6 {[%emt 0:05:02]} 9. h4 {[%emt 0:04:54][%cal Bh2h4,Bh4h5,Bh5h6][%mdl 32] The position is equal.} Ba6 {[%emt 0:17:17]} 10. Bxa6 {[%emt 0:01:41]} Nxa6 {[%emt 0:00:03]} 11. h5 {[%emt 0:08:45]} Nd7 {[%emt 0:04:45]} (11... h6 $5) 12. h6 {[%emt 0:03:22]} g6 {[%emt 0:01:54]} 13. Nxd7 {[%emt 0:12:45]} Qxd7 {[%emt 0:00:44]} 14. Qf3 {[%emt 0:01:34]} f6 $146 {[%emt 0:02:47]} (14... Be7 15. O-O Nb8 16. e4 Nc6 17. dxc5 bxc5 18. Rad1 Rad8 19. Nc4 d4 20. Qg4 f6 {1-0 Grabinsky,A (2399)-Yim,S (2207) Hollywood Classic  1st 2022 (6)}) 15. O-O {[%emt 0:05:41]} Nc7 {[%emt 0:04:28]} 16. Bxd6 {[%emt 0:04:54]} Qxd6 {[%emt 0:00:04]} 17. dxc5 {[%emt 0:00:08]} bxc5 {[%emt 0:08:03]} 18. c4 {[%emt 0:04:12]} a5 {[%emt 0:05:40][%cal Ba7a5,Ba5a4][%mdl 32]} 19. cxd5 {[%emt 0:08:59]} exd5 {[%emt 0:00:39]} 20. Rfd1 {[%emt 0:00:53]} a4 {[%emt 0:16:03]} 21. Rac1 {[%emt 0:01:45]} Rad8 {[%emt 0:06:38]} 22. Nb1 {[%emt 0:07:54]} Nb5 {[%emt 0:13:33]} (22... Rfe8 $11) 23. Qe2 $16 {[%emt 0:05:17]} Qc6 {[%emt 0:07:41]} (23... Rb8 $16 24. Qc2 a3 25. bxa3 (25. Qxc5 axb2 26. Rc2 Qxc5 $11) (25. Nxa3 Nxa3 26. bxa3 Rbc8 $18) 25... Ra8) 24. Qc2 $18 {[%emt 0:00:19][%csl LRa4,LRc5]} c4 {[%emt 0:00:22]} 25. Qxa4 {[%emt 0:01:31] Nc3 is the strong threat.} Ra8 {[%emt 0:00:37]} 26. Qb4 {[%emt 0:00:24][%cal Oe3e4]} Nd6 $2 {[%emt 0:01:08]} (26... Rfb8 27. b3 Nd6) 27. Nc3 {[%emt 0:02:26]} Rab8 {[%emt 0:02:23] [#]} 28. Nxd5 {[%emt 0:03:14]} Qxd5 {[%emt 0:00:46]} 29. Qxd6 {[%emt 0:03:19]} Qg5 {[%emt 0:00:37]} (29... Qxd6 30. Rxd6 Rfc8) 30. Rxc4 {[%emt 0:01:40]} Rxb2 {[%emt 0:00:14] [#]} 31. Rc8 $1 {[%emt 0:00:52][%mdl 512] Against Rb8.   Weighted Error Value: White=0.02 (flawless) /Black=0.75  Mistake:       	---       	Black=4      Inaccurate:     	---       	Black=2      OK:         	White=12    	Black=5      Best:        	White=3     	---} 1-0